Cogmind - Beta 16 @@@ ROGUE MODE // 2025.11.02 @ 19:57:28 Player: Cmdr.Laserstrahl Result: Destroyed by G-47 Trooper with Particle Gun Performance ------------- Evolutions (3) 1500 Regions Visited (6) 1200 Robots Destroyed (92) 460 Value Destroyed (2678) 2678 Prototype IDs (26) 520 Alien Tech Used (0) 0 Bonus (542) 542 TOTAL SCORE: 6900 Bonus ------- High Alert Combat Kills 242 Aligned with FarCom 300 Cogmind --------- Core Integrity 0/700 Matter 290/300 Energy 156/160 System Corruption 1% Temperature Cool (9) Movement Rolling (115) Ox1 Location -7/Factory Parts ------- > --- POWER (1) -------- Light Nuclear Core > --- PROPULSION (3) --- Armored Huge Wheel > --- UTILITY (6) ------ High-capacity Storage Unit Advanced Visual Processing Unit Target Analyzer > --- WEAPON (3) ------- Power Maul Chainsword > --- INVENTORY (20) --- Cooled Ion Engine Wheel Wheel Armored Huge Wheel Medium Storage Unit High-capacity Matter Pod (200) High-capacity Matter Pod (200) Improved Terrain Scanner Cloak of Protection Hacking Suite Heavy Laser Improved EM Pulse Cannon Minigun Minigun Gauss Rifle Gauss Rifle Rocket Launcher Remote Datajack Peak State ------------ > --- POWER ------------ Light Angular Momentum Engine > --- PROPULSION ------- Armored Wheel Armored Wheel > --- UTILITY ---------- High-capacity Storage Unit Advanced Visual Processing Unit Matter Filter Microactuators Cloak of Protection Hardened Medium Armor Plating > --- WEAPON ----------- Enhanced Autogun Power Maul Chainsword > --- INVENTORY -------- Cooled Ion Engine Armored Huge Wheel Medium Storage Unit High-capacity Matter Pod High-capacity Matter Pod Improved Terrain Scanner Improved Light Armor Plating Hacking Suite Heavy Laser Improved EM Pulse Cannon Minigun Minigun Gauss Rifle Gauss Rifle Rocket Launcher Remote Datajack [Rating: 49] Favorites ----------- Power Cooled Ion Engine Engine Cooled Ion Engine Power Core Light Nuclear Core Propulsion Wheel Leg Improved Titanium Leg Wheel Wheel Utility High-capacity Storage Unit Device Improved Terrain Scanner Storage High-capacity Storage Unit Processor Advanced Visual Processing Unit Protection Improved Medium Armor Plating Weapon Enhanced Autogun Energy Gun Small Laser Energy Cannon EM Pulse Cannon Ballistic Gun Enhanced Autogun Launcher Rocket Launcher Special Weapon Remote Datajack Impact Weapon Power Maul Slashing Weapon Chainsword Build | -11 -10 -10 -10 -9 -8 -7 ------- Run | Yrd Mat Min Exi Min Mat Fac Slots Evolved 6 | . . . . . 4 2 Power . | . . . . . . . Propulsion 1 | . . . . . 1 . Utility 4 | . . . . . 3 1 Weapon 1 | . . . . . . 1 Parts Attached 65 | 8 5 1 . . 12 39 Power 6 | 1 1 1 . . 1 2 Engine 4 | 1 . 1 . . 1 1 Core 2 | . 1 . . . . 1 Reactor . | . . . . . . . Propulsion 20 | 4 . . . . 3 13 Treads . | . . . . . . . Leg 1 | . . . . . . 1 Wheel 19 | 4 . . . . 3 12 Hover . | . . . . . . . Flight . | . . . . . . . Utility 21 | 1 3 . . . 4 13 Device 10 | . 1 . . . 2 7 Storage 3 | 1 2 . . . . . Processor 2 | . . . . . 1 1 Hackware . | . . . . . . . Protection 6 | . . . . . 1 5 Artifact . | . . . . . . . Weapon 18 | 2 1 . . . 4 11 Energy Gun 2 | . 1 . . . 1 . Energy Cannon 2 | . . . . . . 2 Ballistic Gun 8 | 2 . . . . 2 4 Ballistic Cannon . | . . . . . . . Launcher 1 | . . . . . . 1 Special Weapon 2 | . . . . . 1 1 Impact Weapon 2 | . . . . . . 2 Slashing Weapon 1 | . . . . . . 1 Piercing Weapon . | . . . . . . . Special Melee Weapon . | . . . . . . . Unidentified Prototypes 3 | . . . . . 3 . Parts Lost 25 | . 2 . . . 3 20 Power 3 | . 2 . . . . 1 Propulsion 8 | . . . . . 3 5 Utility 12 | . . . . . . 12 Weapon 2 | . . . . . . 2 Highest Loss Streak 6 | . 1 . . . 3 6 To Critical Strikes . | . . . . . . . Average Backups 17 | 5 8 11 12 16 19 19 Power . | . 1 . 1 1 1 1 Propulsion 3 | 2 4 6 7 7 7 1 Utility 6 | . 1 2 2 4 5 7 Weapon 6 | 1 2 2 2 3 5 8 Tool/Special . | . . . . . . . Unused Backups 24 | 1 . . . . 7 16 Power 1 | . . . . . 1 . Propulsion 9 | 1 . . . . 4 4 Utility 6 | . . . . . . 6 Weapon 7 | . . . . . 2 5 Tool/Special 1 | . . . . . . 1 Average Slot Usage (%) 96 | . 93 100 100 100 88 97 Engine 8 | . 7 14 14 14 9 6 Leg 1 | . . . . . . 2 Wheel 22 | . 28 28 28 28 24 19 Device 18 | . 9 14 14 14 18 21 Storage 9 | . 14 14 14 14 9 7 Processor 5 | . . . . . 6 7 Protection 4 | . . . . . 2 7 Energy Gun 4 | . 5 14 14 14 8 . Ballistic Gun 16 | . 22 14 14 14 9 18 Peak Build Rating 49 | 7 11 10 11 11 31 49 Average Rating 29 | 5 9 9 10 11 22 39 On Entrance 10 | . 7 8 10 11 11 27 Avg Prop Armor Cover (%) 4 | . . . . . . 4 Naked Turns . | . . . . . . . Heaviest Build 74 | 10 48 48 48 48 59 74 Greatest Support 42 | 32 20 20 20 20 42 42 Greatest Overweight (x) 6 | . 2 2 2 2 5 6 Average Overweight (x) 1 | . 1 2 2 2 1 1 Largest Inventory Capacity 20 | 8 20 20 20 20 20 20 Average Capacity 19 | 7 17 20 20 20 20 20 Most Carried 20 | 8 10 12 13 20 20 20 Average Carried 17 | 5 8 11 12 16 19 19 Final Capacity 20 | 8 20 20 20 20 20 20 Final Carried 20 | 8 9 12 13 20 20 19 Class Distribution -------------------- 29% | Scavenger-Skirmisher 26% | Tank 18% | Skirmisher 11% | Scavenger-Mutant 9% | Mutant Dominant Class ---------------- Mutant | -10/Materials Scavenger-Mutant | -10/Mines Scavenger-Mutant | -10/Exiles Scavenger-Skirmisher | -9/Mines Scavenger-Skirmisher | -8/Materials Tank | -7/Factory Resources | -11 -10 -10 -10 -9 -8 -7 ----------- Run | Yrd Mat Min Exi Min Mat Fac Matter Collected 3033 | 312 130 41 . 179 398 1973 Remotely . | . . . . . . . Salvage Created 4018 | 166 120 32 . 80 554 3066 Parts 193 | 14 7 5 . 4 23 140 Haulers Intercepted 1 | . . . . . 1 . Recyclers Shooed 8 | . 1 1 . 1 1 4 Parts Field Recycled . | . . . . . . . Retrieved Matter . | . . . . . . . Parts Self-Destructed . | . . . . . . . Prevented . | . . . . . . . Parts Restored . | . . . . . . . Kills | -11 -10 -10 -10 -9 -8 -7 ------- Run | Yrd Mat Min Exi Min Mat Fac Combat Hostiles Destroyed 51 | . 2 . . . 4 45 Melee 4 | . . . . . . 4 Guns 33 | . 2 . . . 4 27 Cannons 3 | . . . . . . 3 AOE 7 | . . . . . . 7 Classes Destroyed 13 | 3 1 . . . 3 6 Worker 11 | 1 1 2 . . 1 6 Tunneler 6 | 3 . . . 1 . 2 Hauler 1 | . . . . . 1 . Recycler 15 | 1 . . . 1 3 10 Mechanic 2 | . . . . . . 2 Operator 3 | . . . . . . 3 Watcher 3 | . . . . . 1 2 Swarmer 11 | . . . . . . 11 Grunt 23 | . 2 . . . 3 18 Brawler 4 | . . . . . . 4 Sentry 5 | . . . . . 1 4 Hunter 4 | . . . . . . 4 Programmer 4 | . . . . . . 4 Best Kill Streak 6 | 2 3 2 . 2 3 6 Combat Bots Only 4 | . 2 . . . 2 4 Max Kills in Single Turn 2 | 1 1 1 . 1 1 2 Gunslinging 1 | . . . . . . 1 Exploded 2 | . . . . . . 2 Melee 1 | . . . . . . 1 Uniques/NPCs Destroyed . | . . . . . . . Combat | -11 -10 -10 -10 -9 -8 -7 -------- Run | Yrd Mat Min Exi Min Mat Fac Hostile Shots Fired 575 | . 34 . . . 12 529 Missed 188 | . 10 . . . 2 176 Hits 387 | . 24 . . . 10 353 Melee 1 | . . . . . . 1 Projectile 386 | . 24 . . . 10 352 Critical Strikes 8 | . 1 . . . 1 6 Damage Taken 4563 | . 333 . . . 161 4069 Core 794 | . 46 . . . 35 713 Absorbed by Shields 359 | . . . . . . 359 Regen/Repaired (Parts) 76 | . . . . . . 76 Core Remaining (%) 91 | 100 . . . 81 93 . Volleys Fired 260 | 16 28 7 . 11 32 166 Largest 3 | 2 2 2 . 2 2 3 Hottest 119 | 40 60 60 . 60 100 119 Shots Fired 662 | 32 56 14 . 22 61 477 Gun 612 | 32 56 14 . 22 58 430 Cannon 38 | . . . . . . 38 Launcher 7 | . . . . . . 7 Special 5 | . . . . . 3 2 Kinetic 557 | 32 49 7 . 11 29 429 Thermal 58 | . 7 7 . 11 32 1 Explosive 7 | . . . . . . 7 Electromagnetic 38 | . . . . . . 38 Robot Hit Streak 23 | 9 8 4 . 3 23 18 Robot Miss Streak 4 | 4 2 1 . 4 3 4 Penetration Max . | . . . . . . . Secondary Targets 5 | . . . . . 1 4 Max Gunslinging Chain 1 | . . . . . 1 1 Shots Hit Robots 437 | 22 40 9 . 11 39 316 Core Hits 172 | 10 13 4 . 5 17 123 Critical Kills 1 | . . . . . . 1 Critical Parts Destroyed 10 | . . . . . 1 9 Critical Strikes 14 | . . . . . 4 10 Burn 3 | . . . . . 3 . Destroy 4 | . . . . . 1 3 Smash 7 | . . . . . . 7 Melee Attacks 31 | . . . . . . 31 Impact 25 | . . . . . . 25 Slashing 6 | . . . . . . 6 Piercing . | . . . . . . . Sneak Attacks . | . . . . . . . Combat Hostiles . | . . . . . . . Follow-up Attacks 2 | . . . . . . 2 Damage Inflicted 8251 | 185 336 94 . 107 671 6858 Guns 6158 | 185 336 94 . 107 671 4765 Cannons 576 | . . . . . . 576 Explosions 802 | . . . . . . 802 Melee 715 | . . . . . . 715 Ramming . | . . . . . . . Kinetic 5739 | 185 278 31 . 42 438 4765 Thermal 529 | . 58 63 . 65 233 110 Explosive 692 | . . . . . . 692 Electromagnetic 576 | . . . . . . 576 Impact 635 | . . . . . . 635 Slashing 80 | . . . . . . 80 Piercing . | . . . . . . . Highest Corruption 1 | . . . . . . 1 Average Corruption 1 | . . . . . . 1 Corruption Purged . | . . . . . . . Corruption Blocked . | . . . . . . . Effects 6 | . . . . . . 6 Message Errors 1 | . . . . . . 1 Matter Fused 2 | . . . . . . 2 Heat Flow Errors 1 | . . . . . . 1 Energy Discharges 1 | . . . . . . 1 Data Loss (minor) 1 | . . . . . . 1 Overload Shots . | . . . . . . . Overflow Damage 280 | . . . . . . 280 Projectiles 32 | . . . . . . 32 Explosions . | . . . . . . . Melee 248 | . . . . . . 248 Knockbacks 3 | . . . . . . 3 Impact 3 | . . . . . . 3 Kinetic . | . . . . . . . Secondary . | . . . . . . . Self-Inflicted Damage 27 | . . . . . . 27 Shots 1 | . . . . . . 1 Rammed . | . . . . . . . Targets Rammed . | . . . . . . . Kicked . | . . . . . . . Crushed . | . . . . . . . Highest Temperature 267 | . 33 40 . 40 156 267 Average Temperature 35 | . 13 22 . 18 49 40 Received Heat Transfer 1819 | . 213 . . . 108 1498 Effects 1 | . . . . . . 1 Interference 1 | . . . . . . 1 Siege Activations . | . . . . . . . Martial Activations . | . . . . . . . Shielding Activations . | . . . . . . . Robots Disrupted . | . . . . . . . Combat Hostiles . | . . . . . . . Robots Corrupted 4 | . . . . . . 4 Combat Hostiles 4 | . . . . . . 4 Parts Fried 3 | . . . . . . 3 Impact Corruptions 9 | . . . . . . 9 Robots Melted . | . . . . . . . Combat Hostiles . | . . . . . . . Parts Melted 1 | . . . . . 1 . Heat Transferred 1303 | . 125 150 . 150 728 150 Parts Sabotaged . | . . . . . . . Parts Stolen . | . . . . . . . Parts Stripped . | . . . . . . . Power Chain Reactions 2 | . . . . . . 2 Alert | -11 -10 -10 -10 -9 -8 -7 ------- Run | Yrd Mat Min Exi Min Mat Fac Maximum Alert Level 3 | . . . . . . 3 Low Security (%) 50 | 100 100 100 . 100 100 23 Level 1 26 | . . . . . . 41 Level 2 18 | . . . . . . 29 Level 3 4 | . . . . . . 6 Level 4 . | . . . . . . . Level 5 . | . . . . . . . High Security . | . . . . . . . Max Security . | . . . . . . . Peak Influence 819 | 10 40 5 . 10 35 819 Initial 3 | . 3 . . . . . Average 210 | 2 9 . . . 7 322 Influence Increases 1866 | 25 64 10 . 10 139 1618 Destroy 0b10 Robot/C 1020 | . 40 . . . 80 900 Destroy 0b10 Robot/NC 205 | 25 5 10 . 10 30 125 Destroy Leader 218 | . 10 . . . 24 184 Successful Hack 70 | . 9 . . . . 61 Disable Machine 60 | . . . . . . 60 Destroy Structure 53 | . . . . . 5 48 Partial Spotted 15 | . . . . . . 15 Lose Combat Pursuer 225 | . . . . . . 225 Influence Decreases 1048 | 20 69 10 . 10 139 800 Entered New Map 2 | . 2 . . . . . Time Decay 816 | 20 57 10 . 10 119 600 Lost Part 230 | . 10 . . . 20 200 Squads Dispatched 14 | . . . . . . 14 Investigation 2 | . . . . . . 2 Extermination 4 | . . . . . . 4 Reinforcement 3 | . . . . . . 3 Assault 2 | . . . . . . 2 Garrison 3 | . . . . . . 3 Intercept . | . . . . . . . Searches Triggered . | . . . . . . . Construction Impeded . | . . . . . . . Haulers Reinforced . | . . . . . . . Active Scanning Responses . | . . . . . . . Cargo Convoy Interrupts . | . . . . . . . Stealth | -11 -10 -10 -10 -9 -8 -7 --------- Run | Yrd Mat Min Exi Min Mat Fac Distress Signals 1 | . . . . . . 1 Communications Jammed . | . . . . . . . Distress Signals . | . . . . . . . Times Spotted 94 | . 8 . . . 9 77 Peak Tracking Total 9 | . 4 . . . 3 9 Tactical Retreats 8 | . . . . . . 8 ECM-based Alert Blocks 1 | . . . . . . 1 Traps | -11 -10 -10 -10 -9 -8 -7 ------- Run | Yrd Mat Min Exi Min Mat Fac Traps Triggered 2 | . . . . . . 2 Indirectly . | . . . . . . . Trap Hack Attempts . | . . . . . . . Triggered . | . . . . . . . Disarmed . | . . . . . . . Reprogrammed . | . . . . . . . Reused . | . . . . . . . Traps Extracted . | . . . . . . . Installed . | . . . . . . . Triggered . | . . . . . . . Machines | -11 -10 -10 -10 -9 -8 -7 ---------- Run | Yrd Mat Min Exi Min Mat Fac Machines Disabled 4 | . . . . . . 4 Max in Single Turn 1 | . . . . . . 1 Machines Repaired . | . . . . . . . Machines Dismantled . | . . . . . . . Machines Sabotaged . | . . . . . . . Overloaded Fab Kills . | . . . . . . . Hacking | -11 -10 -10 -10 -9 -8 -7 --------- Run | Yrd Mat Min Exi Min Mat Fac Machines Accessed 14 | . 2 . 2 . . 10 Terminals 8 | . 2 . . . . 6 Fabricators . | . . . . . . . Repair Stations 1 | . . . . . . 1 Recycling Units 1 | . . . . . . 1 Scanalyzers 2 | . . . . . . 2 Garrison Access . | . . . . . . . Total Hacks 34 | . 4 . 2 . . 28 Successful 19 | . 2 . 2 . . 15 Failed 14 | . 2 . . . . 12 Catastrophic 4 | . . . . . . 4 Database Lockouts 1 | . . . . . . 1 Manual 17 | . 4 . 1 . . 12 Terminals 15 | . 4 . . . . 11 Fabricators . | . . . . . . . Repair Stations 3 | . . . . . . 3 Recycling Units 1 | . . . . . . 1 Scanalyzers 13 | . . . . . . 13 Garrison Access . | . . . . . . . Terminal Hacks 2 | . . . 2 . . . Record 1 | . . . 1 . . . Proto ID Catalog 1 | . . . 1 . . . Fabricator Hacks . | . . . . . . . Repair Station Hacks 2 | . . . . . . 2 Scan Component 1 | . . . . . . 1 Repair 1 | . . . . . . 1 Recycling Unit Hacks . | . . . . . . . Scanalyzer 9 | . . . . . . 9 Insert Component 3 | . . . . . . 3 Analyze 4 | . . . . . . 4 Retrieve Study 2 | . . . . . . 2 Garrison Access Hacks . | . . . . . . . Unauthorized Hacks 6 | . 2 . . . . 4 Terminals 5 | . 2 . . . . 3 Botnet 5 | . 2 . . . . 3 Fabricators . | . . . . . . . Repair Stations . | . . . . . . . Recycling Units 1 | . . . . . . 1 Mask 1 | . . . . . . 1 Scanalyzers . | . . . . . . . Garrison Access . | . . . . . . . Data Cores Recovered 2 | . . . . . . 2 Used 1 | . . . . . . 1 Hacking Detections 11 | . 2 . . . . 9 Full Trace Events 2 | . . . . . . 2 Feedback Events . | . . . . . . . Feedback Blocked . | . . . . . . . Robot Schematics Acquired . | . . . . . . . Robots Built . | . . . . . . . Authchips . | . . . . . . . Time . | . . . . . . . Total Robot Build Rating . | . . . . . . . Part Schematics Acquired 3 | . . . . . . 3 Parts Built . | . . . . . . . Authchips . | . . . . . . . Time . | . . . . . . . Total Part Build Rating . | . . . . . . . Part Studies Acquired 2 | . . . . . . 2 Parts Repaired 1 | . . . . . . 1 Time 19 | . . . . . . 19 Parts Recycled . | . . . . . . . Recycled Matter . | . . . . . . . Retrieved Matter . | . . . . . . . Retrieved Components . | . . . . . . . Parts Scanalyzed 3 | . . . . . . 3 Part Schematics Acquired 3 | . . . . . . 3 Parts Damaged . | . . . . . . . Bothacking | -11 -10 -10 -10 -9 -8 -7 ------------ Run | Yrd Mat Min Exi Min Mat Fac Used RIF Installer . | . . . . . . . Robots Hacked 1 | . . . . . . 1 Non-combat 1 | . . . . . . 1 Combat . | . . . . . . . Robot Hacks Applied 1 | . . . . . . 1 find_recycling 1 | . . . . . . 1 Relay Couplers Released . | . . . . . . . Fabnet Peak Effective % . | . . . . . . . Robots Rewired . | . . . . . . . Allies Hacked . | . . . . . . . Hacks Repelled . | . . . . . . . Allies | -11 -10 -10 -10 -9 -8 -7 -------- Run | Yrd Mat Min Exi Min Mat Fac Total Allies . | . . . . . . . Largest Group . | . . . . . . . Highest-Rated Group . | . . . . . . . Highest-Rated Ally . | . . . . . . . Total Orders . | . . . . . . . Ally Attacks . | . . . . . . . Total Damage . | . . . . . . . Kills . | . . . . . . . Allies Corrupted . | . . . . . . . Allies Melted . | . . . . . . . Intel | -11 -10 -10 -10 -9 -8 -7 ------- Run | Yrd Mat Min Exi Min Mat Fac Active Infowar (turns) 3879 | . 177 119 240 368 489 2486 Optics 2825 | . . . . . 339 2486 Terrain 1826 | . 177 119 240 368 489 433 Seismic 1055 | . . . . . 426 629 Cloaking 3 | . . . . . . 3 ECM 1226 | . . . . . . 1226 Robot Analysis Total . | . . . . . . . Derelict Logs Recovered 1 | . . . . 1 . . Drone Launches . | . . . . . . . Drone Recoveries . | . . . . . . . Exploration | -11 -10 -10 -10 -9 -8 -7 ------------- Run | Yrd Mat Min Exi Min Mat Fac Turns Passed 4083 | 134 247 119 240 368 489 2486 Spaces Moved 2532 | 76 161 86 218 294 319 1378 Core 9 | 9 . . . . . . Treads . | . . . . . . . Legs . | . . . . . . . Wheels 2523 | 67 161 86 218 294 319 1378 Hover . | . . . . . . . Flight . | . . . . . . . Fastest Speed 50 | 50 80 110 110 110 95 95 Average Speed 109 | 91 97 110 110 110 107 112 Slowest Speed 180 | 100 110 110 110 110 155 180 Overloaded Moves . | . . . . . . . Propulsion Burnouts . | . . . . . . . Robots Hopped . | . . . . . . . Potential Cave-ins . | . . . . . . . Cave-ins Triggered . | . . . . . . . Exploration Rate (%) 37 | 4 39 23 60 68 26 44 Regions Visited 6 Branch Regions 3 Pre-discovered Areas 1 | . . . . 1 . . Known Exits Taken . | . . . . . . . Unknown Exits Taken 6 | 1 1 1 1 1 1 . Scrap Searched 2 | . . . . 2 . . Spaces Dug 14 | . . . . . 3 11 Terrain Destroyed 43 | . . . . . 3 40 Melee 3 | . . . . . . 3 Projectile 3 | . . . . . 3 . AOE 37 | . . . . . . 37 Terrain Rammed . | . . . . . . . Walls Destroyed . | . . . . . . . Machines Disabled . | . . . . . . . Actions | -11 -10 -10 -10 -9 -8 -7 --------- Run | Yrd Mat Min Exi Min Mat Fac Total 3406 | 115 204 97 218 318 409 2045 Wait 403 | . 5 . . 7 18 373 Move 2526 | 75 160 85 217 293 318 1378 Hop . | . . . . . . . Pick Up 70 | 14 4 4 1 7 14 26 Fast Attach 23 | . 1 . . . 7 15 Attach 26 | 6 3 1 . . 3 13 Detach . | . . . . . . . Swap 26 | 2 1 . . . 3 20 Drop 47 | 2 2 . . . 14 29 Fire 260 | 16 28 7 . 11 32 166 Melee 25 | . . . . . . 25 Ram . | . . . . . . . Kick . | . . . . . . . Crush . | . . . . . . . Escape Stasis . | . . . . . . . Rewire . | . . . . . . . Trap . | . . . . . . . Miscellaneous . | . . . . . . . Route ------- -11/Scrapyard -10/Materials (discovered 2 exits: [*Mat] / [*Min]) -10/Mines -10/Exiles -9/Mines -8/Materials -7/Factory (discovered 2 exits: [*Fac] / [*Low]) History --------- Turn | Location | Event 18 | -11/Scrapyard | Discovered new exit (range 16) 135 | -11/Scrapyard | Entered Materials 195 | -10/Materials | Discovered new exit (range 16) 349 | -10/Materials | Discovered new exit (range 8) 382 | -10/Materials | Entered Mines 496 | -10/Mines | Deemed a non-threat by the Exiles lab entrance 496 | -10/Mines | Discovered new exit (range 5) 501 | -10/Mines | Entered Exiles 527 | -10/Exiles | Met 8R-AWN 545 | -10/Exiles | Met EX-HEX 574 | -10/Exiles | Build established: Scavenger-Mutant 578 | -10/Exiles | Met EX-BIN 592 | -10/Exiles | Aligned with FarCom system 593 | -10/Exiles | Given EX-Vault access code 620 | -10/Exiles | Opened EX-Vault 627 | -10/Exiles | Found Cloak of Protection 662 | -10/Exiles | Warned to stay clear of 0b10 Research branches 692 | -10/Exiles | Met EX-DEC 731 | -10/Exiles | Discovered new exit (range 11) 741 | -10/Exiles | Left Exiles lab with Cloak of Protection 741 | -10/Exiles | Entered Mines 748 | -9/Mines | Received a Rocket Launcher from a helpful Derelict 779 | -9/Mines | Discovered new exit (range 8) 798 | -9/Mines | Learned location of Zion (-7) 1030 | -9/Mines | Build established: Scavenger-Skirmisher 1109 | -9/Mines | Entered Materials 1109 | -8/Materials | Evolved 4 slots: Propulsion x1, Utility x3 1345 | -8/Materials | Lost 3 parts (3n) 1438 | -8/Materials | Discovered new exit (range 16) 1598 | -8/Materials | Entered Factory 1598 | -7/Factory | Evolved 2 slots: Utility x1, Weapon x1 2369 | -7/Factory | Build established: Tank 2497 | -7/Factory | Discovered new exit (range 17) 2847 | -7/Factory | Garrison activated, responded to threat 3176 | -7/Factory | Central database locked down 3534 | -7/Factory | Build established: Skirmisher 3575 | -7/Factory | Repaired Minigun+ 3598 | -7/Factory | First assault squad dispatched 3623 | -7/Factory | Discovered new exit (range 14) 3898 | -7/Factory | Core integrity fell below 50% 3943 | -7/Factory | Lost 5 parts (1n3u1w) 4012 | -7/Factory | Lost 3 parts (1n2u) 4036 | -7/Factory | Core integrity fell below 20% 4076 | -7/Factory | Lost 6 parts (1p1n3u1w) 4084 | -7/Factory | Destroyed by G-47 Trooper with Particle Gun Last Messages --------------- 04031_ Lgt. Angular Momentum Engine destroyed. 04034_ G-47 Trooper knocked back. 04035_ K-01 Serf collects debris. 04035_ Arm. Wheel destroyed. 04039_ G-47 Trooper suffers critical hit (Smash). 04039_ Destroyed Aluminum Leg. 04039_ G-47 Trooper system corrupted by crushing effect. 04041_ K-01 Serf destroyed. 04043_ Enh. Autogun destroyed. 04045_ Hrd. Light Armor Plating destroyed. 04046_ Acquired Wheel+. 04049_ G-47 Trooper destroyed. 04050_ Acquired 25 matter. 04055_ K-01 Serf collects debris. 04057_ Acquired Lgt. Nuclear Core. 04058_ K-01 Serf collects debris. 04076_ Acquired Arm. Huge Wheel. 04078_ Critical hit (Burn: +37). Map ----- +----------------------------------------------------+ | "F"" ???####??????# #???? | | ! """" ####T ######## #???? | | = !#?????# / #???? | | ################### # #???? | | # #???# %#% # #???? | | " #???# ! !%/== + ] #???? | | ### #???# =# ######### #???? | | ???# ##???# *## ##???????##############???? | | ???? #????######+##### #?????????????????????????? | | ?????#?????????# #?### ###???????????????????????? | | ??????????????## ### #???????????????????????? | | ??????????????# #???????????????????????? | | ??????????????# g #???????????????????????? | | ??????????????# #???????????????????????? | | ??????????????## ### #???????????????????????? | | ???????????????#+#####Y#######???????????????????? | | ???????????????# #???????????????????? | | ???????????????# """ """g""" #???????????????????? | | ???????????????# """ """ """ #???????????????????? | | ???????????????# """ """ """ #???????????????????? | | ???????????????# #???????????????????? | | ???????????????# ! !#???????????????????? | | ?????????????############;####???????????????????? | | ?????????????# """ #??????????????????????? | | ?????????????# "Y" #??????????????????????? | | ?????????????# " "@#??????????????????????? | | ?????????????# #??????????????????????? | | ?????????????# ! +?????????????Y????????? | | ?????????????# = #??????????????????????? | | ?????????????# "" "" #??????????????????????? | | ?????????????# "" "" #??????????????????????? | | ?????????????# """ """ #??????????????????????? | | ?????????????#?""" """ #??????????????????????? | | ????????????????"" """ +??????????????????????? | | ???????????????? #??????????????????????? | | ????#####???????##?#+####+#??????????????????????? | | ??? ???????????????? ???????????????????????? | | ??? ????????????????#???????????????????????? | | ??? ?????????????????????????????????????????? | | ??? ?????????????????????????Y??????????????? | | ??? #???????????????????????????????????????? | | ???# #???????????????????????????????????????? | | ???# #####???????????????????????????????????? | | ???# ???????????????????????????????????? | | ???# ?????????????????????????????????????? | | ???# """ """????????????????????????????????????? | | ???# """ """ "??????????????????????????????????? | | ???# """ """ ""?????????????????????????????????? | | ???# ?????????????????????????????????? | | ???# """ """ ""?????????????????????????????????? | +----------------------------------------------------+ Best States ------------- Heat Dissipation 61 Energy Generation 18 Energy Capacity 280 Matter Stores 300 Matter Capacity 300 Sight Range 20 Terrain Scan Range 16 Terrain Scan Density 10 ECM Strength 1 Armor Coverage 375 Melee Speed Boost 20 Evasion (%) 50 Target Analysis 5 Matter Filtering 30 Item Schematics ----------------- Hrd. Medium Armor Plating | -7/Factory | Scanalyzed Minigun | -7/Factory | Scanalyzed Hvy. Hammer | -7/Factory | Scanalyzed Robot Schematics ------------------ None Fabricated ------------ Nothing Repaired ---------- Minigun | 39% | -7/Factory Studied --------- Wheel | -7/Factory | Hacked Minigun | -7/Factory | Hacked Alien Tech Used ----------------- None Achievements -------------- None Challenges ------------ None Game ------ Seed LightningCombatFlightbrick Manual? 0 Play Time 01:22:23 Cumulative 425.6 hours Start 2025.11.02 @ 09:09:53 End 2025.11.02 @ 19:57:28 Sessions 3 Manual Loads 0 Difficulty Rogue Special Mode None Game No. 164 Rogue 161 Adventurer 3 Explorer 0 Win Type - Total 0 Types 0/0/0/0/0/0/0/0/0/0 Lore% 27 Gallery% 52 Achievement% 32 Wizard Run 0 Options --------- Layout 2 ASCII 0 Keyboard 0 Movement Mouse Keybinds 0 Fullscreen 1 Font 24/Smallcaps Map View 50x44 Zoom Use 0% Tactical HUD 1 Map Filters NONE Filters NONE Steam 1 RUN: b6ddec1b-970f-486c-858a-02d44996dac5